Cogmind - Beta 13 @@@ ROGUE MODE // 2024.04.27 @ 13:39:17 Player: Bace Troncons Result: Destroyed by C-17 Slicer with Concussive RPG Performance ------------- Evolutions (2) 1000 Regions Visited (7) 1400 Robots Destroyed (53) 265 Value Destroyed (1658) 1658 Prototype IDs (29) 580 Alien Tech Used (0) 0 Bonus (2021) 2021 TOTAL SCORE: 6924 Bonus ------- High Alert Combat Kills 319 Follower Combat Kills 702 Entered Garrisons 200 Used RIF Installer 500 Aligned with FarCom 300 Cogmind --------- Core Integrity 0/550 Matter 173/300 Energy 100/100 System Corruption 0% Temperature Cool (4) Movement Hovering (111) Ox1 Location -8/Materials Parts ------- > --- POWER (1) -------- (None) > --- PROPULSION (4) --- Antigrav System Gyrokinetic Inverter Linear Gravjet > --- UTILITY (4) ------ Large Storage Unit Advanced Targeting Computer Relay Coupler [Grunt] (18) Relay Coupler [Sentry] (21) > --- WEAPON (2) ------- Improved Remote Datajack > --- INVENTORY (15) --- Nuclear Core Nuclear Pulse Array Relay Coupler [NC] (35) Relay Coupler [Swarmer] (57) Relay Coupler [Heavy] (20) Relay Coupler [Behemoth] (14) Improved Recalibrator Improved Light Cannon Assault Cannon Assault Cannon Smartbomb Launcher Deploy-a-Sentry Peak State ------------ > --- POWER ------------ Micro Fission Core > --- PROPULSION ------- Antigrav System Antigrav System Gyrokinetic Inverter Linear Gravjet > --- UTILITY ---------- Large Storage Unit Advanced Targeting Computer Advanced Targeting Computer Advanced Targeting Computer > --- WEAPON ----------- Smartbomb Launcher > --- INVENTORY -------- Nuclear Core Nuclear Pulse Array Relay Coupler [NC] Relay Coupler [Swarmer] Relay Coupler [Grunt] Relay Coupler [Sentry] Relay Coupler [Heavy] Relay Coupler [Behemoth] Improved Recalibrator Improved Remote Datajack Katana Deploy-a-Sentry [Rating: 58] Favorites ----------- Power Reinforced Ion Engine Engine Reinforced Ion Engine Power Core Micro Fission Core Propulsion Aluminum Leg Treads Light Treads Leg Aluminum Leg Hover Unit Antigrav System Utility Advanced Targeting Computer Device Seismic Detector Storage Large Storage Unit Processor Advanced Targeting Computer Hackware System Shield Protection Propulsion Shielding Weapon Light Cannon Energy Gun Particle Gun Ballistic Gun Shotgun Ballistic Cannon Light Cannon Launcher Rocket Launcher Special Weapon Improved Remote Datajack Slashing Weapon Katana Special Melee Weapon Datajack Build | -11 -10 -10 -10 -9 -8 -8 -8 ------- Run | Yrd Mat Min Exi Min Mat Gar Mat Slots Evolved 4 | . . . . . 4 . . Power . | . . . . . . . . Propulsion 2 | . . . . . 2 . . Utility 2 | . . . . . 2 . . Weapon . | . . . . . . . . Parts Attached 73 | 6 15 4 . 1 8 27 12 Power 7 | 1 1 1 . . . 3 1 Engine 4 | 1 1 1 . . . 1 . Core 3 | . . . . . . 2 1 Reactor . | . . . . . . . . Propulsion 19 | 2 2 3 . . 2 10 . Treads 4 | 2 . 1 . . . 1 . Leg 9 | . 2 2 . . 2 3 . Wheel . | . . . . . . . . Hover 6 | . . . . . . 6 . Flight . | . . . . . . . . Utility 12 | 1 3 . . . 3 3 2 Device 2 | . 1 . . . 1 . . Storage 2 | 1 1 . . . . . . Processor 4 | . 1 . . . . 3 . Hackware 3 | . . . . . 1 . 2 Protection 1 | . . . . . 1 . . Artifact . | . . . . . . . . Weapon 35 | 2 9 . . 1 3 11 9 Energy Gun 1 | . 1 . . . . . . Energy Cannon . | . . . . . . . . Ballistic Gun 9 | 2 3 . . 1 2 1 . Ballistic Cannon 7 | . 2 . . . . 3 2 Launcher 9 | . 3 . . . 1 3 2 Special Weapon 4 | . . . . . . . 4 Impact Weapon . | . . . . . . . . Slashing Weapon 2 | . . . . . . 1 1 Piercing Weapon . | . . . . . . . . Special Melee Weapon 3 | . . . . . . 3 . Unidentified Prototypes . | . . . . . . . . Parts Lost 17 | . 4 . . . 1 8 4 Power 4 | . 1 . . . . 1 2 Propulsion 8 | . 2 . . . . 5 1 Utility 1 | . . . . . 1 . . Weapon 4 | . 1 . . . . 2 1 Highest Loss Streak 4 | . 3 . . . 1 4 4 To Critical Strikes . | . . . . . . . . Average Slot Usage (%) 98 | . 99 100 100 100 94 98 95 Engine 10 | . 13 14 14 14 9 8 . Treads 4 | . 15 . . . . . . Leg 24 | . 12 27 28 28 34 32 . Hover 2 | . . . . . . 2 35 Device 4 | . 12 . . . 2 . . Storage 11 | . 14 14 14 14 9 9 9 Processor 14 | . 1 14 14 14 9 26 15 Hackware 1 | . . . . . 7 . 11 Ballistic Gun 6 | . 15 . . 14 16 . . Ballistic Cannon 9 | . 10 14 14 14 . 9 7 Launcher 4 | . 1 14 14 . 1 5 . Naked Turns . | . . . . . . . . Heaviest Build 39 | 14 32 35 35 35 37 39 34 Greatest Support 52 | 40 40 25 25 25 50 52 42 Greatest Overweight (x) 9 | . 9 3 1 1 1 3 1 Average Overweight (x) . | . . 1 1 1 . . . Largest Inventory Capacity 15 | 8 15 15 15 15 15 15 15 Average Capacity 14 | 6 14 15 15 15 15 15 15 Most Carried 15 | 4 13 15 15 12 15 15 15 Average Carried 12 | 2 9 13 13 11 13 14 13 Final Capacity 15 | 8 15 15 15 15 15 15 15 Final Carried 15 | 4 11 15 11 11 15 15 14 Class Distribution -------------------- 73% | Mutant 16% | Bothacker-Mutant 9% | Commander-Mutant Dominant Class ---------------- Mutant | -10/Materials Mutant | -10/Mines Mutant | -10/Exiles Mutant | -9/Mines Mutant | -8/Materials Mutant | -8/Garrison Bothacker-Mutant | -8/Materials Resources | -11 -10 -10 -10 -9 -8 -8 -8 ----------- Run | Yrd Mat Min Exi Min Mat Gar Mat Matter Collected 1917 | 209 470 146 . . 295 473 324 Remotely . | . . . . . . . . Salvage Created 1363 | . 547 56 . . 255 282 223 Parts 87 | . 33 6 . . 24 14 10 Haulers Intercepted 5 | . 2 . . . 2 . 1 Recyclers Shooed 1 | . . 1 . . . . . Parts Field Recycled . | . . . . . . . . Retrieved Matter . | . . . . . . . . Parts Self-Destructed . | . . . . . . . . Prevented . | . . . . . . . . Kills | -11 -10 -10 -10 -9 -8 -8 -8 ------- Run | Yrd Mat Min Exi Min Mat Gar Mat Combat Hostiles Destroyed 38 | . 12 4 . . 7 11 4 Melee 1 | . . . . . . . 1 Guns 15 | . 12 . . . 3 . . Cannons 3 | . . 1 . . . 1 1 AOE 19 | . . 3 . . 4 10 2 Classes Destroyed 10 | . 6 1 . . 1 1 1 Worker 4 | . 1 . . . 3 . . Builder 1 | . . . . . 1 . . Hauler 5 | . 2 . . . 2 . 1 Operator 2 | . 1 . . . 1 . . Watcher 3 | . 2 . . . . . 1 Swarmer 11 | . 3 3 . . 4 1 . Grunt 18 | . 9 . . . 2 7 . Sentry 7 | . . 1 . . 1 2 3 Hunter 1 | . . . . . . . 1 Behemoth 1 | . . . . . . 1 . Best Kill Streak 7 | . 2 3 . . 7 4 4 Combat Bots Only 4 | . 2 3 . . 4 4 2 Max Kills in Single Turn 4 | . 2 2 . . 4 2 1 Gunslinging . | . . . . . . . . Exploded 2 | . . 1 . . 2 2 1 Melee 1 | . . . . . . . 1 Uniques/NPCs Destroyed . | . . . . . . . . Combat | -11 -10 -10 -10 -9 -8 -8 -8 -------- Run | Yrd Mat Min Exi Min Mat Gar Mat Hostile Shots Fired 245 | . 96 6 . . 17 87 39 Missed 61 | . 21 3 . . 4 20 13 Damage Taken 2953 | . 853 62 . . 207 1245 586 Core 668 | . 99 . . . 45 315 209 Absorbed by Shields . | . . . . . . . . Redirected to Shielding 23 | . . . . . 23 . . Core Remaining (%) 80 | 100 . . . 60 . . . Volleys Fired 139 | . 69 6 . . 20 33 11 Largest 2 | . 2 2 . . 2 2 2 Hottest 95 | . 95 65 . . 58 58 83 Shots Fired 234 | . 137 12 . . 38 34 13 Gun 157 | . 125 . . . 31 1 . Cannon 26 | . 9 6 . . . 7 4 Launcher 45 | . 3 6 . . 7 26 3 Special 6 | . . . . . . . 6 Kinetic 176 | . 127 6 . . 31 8 4 Thermal 7 | . 7 . . . . . . Explosive 45 | . 3 6 . . 7 26 3 Electromagnetic . | . . . . . . . . Robot Hit Streak 13 | . 13 3 . . 9 10 9 Robot Miss Streak 6 | . 6 . . . 3 1 1 Penetration Max . | . . . . . . . . Secondary Targets 1 | . 1 . . . . . . Max Gunslinging Chain 1 | . 1 . . . . . . Shots Hit Robots 167 | . 85 3 . . 26 39 14 Core Hits 97 | . 32 7 . . 25 28 5 Critical Kills 2 | . 1 . . . 1 . . Critical Parts Destroyed 1 | . 1 . . . . . . Critical Strikes 4 | . 2 . . . 1 1 . Destroy 3 | . 2 . . . 1 . . Blast 1 | . . . . . . 1 . Melee Attacks 32 | . . . . . . 26 6 Impact . | . . . . . . . . Slashing 8 | . . . . . . 2 6 Piercing . | . . . . . . . . Sneak Attacks 24 | . . . . . . 24 . Combat Hostiles . | . . . . . . . . Follow-up Attacks . | . . . . . . . . Damage Inflicted 4115 | . 1174 224 . . 1089 1215 413 Guns 1572 | . 1158 . . . 414 . . Cannons 230 | . 16 38 . . . 126 50 Explosions 2193 | . . 186 . . 675 1089 243 Melee 120 | . . . . . . . 120 Ramming . | . . . . . . . . Kinetic 1771 | . 1143 38 . . 414 126 50 Thermal 31 | . 31 . . . . . . Explosive 2193 | . . 186 . . 675 1089 243 Electromagnetic . | . . . . . . . . Impact . | . . . . . . . . Slashing 120 | . . . . . . . 120 Piercing . | . . . . . . . . Highest Corruption . | . . . . . . . . Average Corruption . | . . . . . . . . Corruption Purged . | . . . . . . . . Corruption Blocked . | . . . . . . . . Overload Shots . | . . . . . . . . Overflow Damage 79 | . . . . . 15 54 10 Projectiles 3 | . . . . . . 3 . Explosions 76 | . . . . . 15 51 10 Melee . | . . . . . . . . Knockbacks . | . . . . . . . . Impact . | . . . . . . . . Kinetic . | . . . . . . . . Secondary . | . . . . . . . . Self-Inflicted Damage 283 | . . 20 . . 33 230 . Shots 6 | . . 1 . . 2 3 . Rammed . | . . . . . . . . Targets Rammed . | . . . . . . . . Kicked . | . . . . . . . . Crushed . | . . . . . . . . Highest Temperature 327 | . 144 27 . . 19 112 327 Average Temperature 90 | . 29 9 . . 4 28 156 Received Heat Transfer 906 | . 408 . . . 90 264 144 Effects 2 | . . . . . . . 2 Energy Bleed 1 | . . . . . . . 1 Matter Decay 1 | . . . . . . . 1 Siege Activations . | . . . . . . . . Robots Corrupted . | . . . . . . . . Combat Hostiles . | . . . . . . . . Parts Fried . | . . . . . . . . Impact Corruptions . | . . . . . . . . Robots Melted . | . . . . . . . . Combat Hostiles . | . . . . . . . . Parts Melted . | . . . . . . . . Heat Transferred 74 | . 74 . . . . . . Parts Sabotaged . | . . . . . . . . Parts Stolen . | . . . . . . . . Parts Stripped . | . . . . . . . . Power Chain Reactions . | . . . . . . . . Alert | -11 -10 -10 -10 -9 -8 -8 -8 ------- Run | Yrd Mat Min Exi Min Mat Gar Mat Peak Influence 1340 | . 158 133 . . 221 1340 885 Initial 653 | . . 5 . . . 143 653 Average 372 | . 48 52 . . 56 774 777 Maximum Alert Level 4 | . . . . . 1 4 3 Low Security (%) 54 | 100 100 100 . 100 93 . . Level 1 5 | . . . . . 6 11 . Level 2 15 | . . . . . . 35 28 Level 3 16 | . . . . . . 34 71 Level 4 7 | . . . . . . 18 . Level 5 . | . . . . . . . . High Security . | . . . . . . . . Max Security . | . . . . . . . . Squads Dispatched 4 | . 1 . . . 2 . 1 Investigation 1 | . . . . . 1 . . Extermination . | . . . . . . . . Reinforcement 3 | . 1 . . . 1 . 1 Assault . | . . . . . . . . Garrison . | . . . . . . . . Intercept . | . . . . . . . . Searches Triggered . | . . . . . . . . Construction Impeded . | . . . . . . . . Haulers Reinforced . | . . . . . . . . Active Scanning Responses . | . . . . . . . . Cargo Convoy Interrupts . | . . . . . . . . Stealth | -11 -10 -10 -10 -9 -8 -8 -8 --------- Run | Yrd Mat Min Exi Min Mat Gar Mat Distress Signals 3 | . 1 . . . . . 2 Communications Jammed . | . . . . . . . . Distress Signals . | . . . . . . . . Times Spotted 82 | . 20 5 . . 11 32 14 Peak Tracking Total 6 | . 3 2 . . 4 6 6 Tactical Retreats 3 | . 1 . . . . 1 1 Traps | -11 -10 -10 -10 -9 -8 -8 -8 ------- Run | Yrd Mat Min Exi Min Mat Gar Mat Traps Triggered 3 | . . . . . . 3 . Indirectly . | . . . . . . . . Trap Hack Attempts . | . . . . . . . . Triggered . | . . . . . . . . Disarmed . | . . . . . . . . Reprogrammed 5 | . 4 . . . 1 . . Reused . | . . . . . . . . Traps Extracted . | . . . . . . . . Installed . | . . . . . . . . Triggered . | . . . . . . . . Machines | -11 -10 -10 -10 -9 -8 -8 -8 ---------- Run | Yrd Mat Min Exi Min Mat Gar Mat Machines Disabled 9 | . . 2 . . 2 5 . Max in Single Turn 2 | . . 2 . . 1 2 . Garrison Access 1 | . . . . . . . 1 Phase Generator 1 | . . . . . . 1 . Machines Repaired . | . . . . . . . . Machines Dismantled . | . . . . . . . . Machines Sabotaged . | . . . . . . . . Overloaded Fab Kills . | . . . . . . . . Hacking | -11 -10 -10 -10 -9 -8 -8 -8 --------- Run | Yrd Mat Min Exi Min Mat Gar Mat Machines Accessed 18 | . 7 . 1 . 5 3 2 Terminals 15 | . 7 . . . 4 3 1 Fabricators . | . . . . . . . . Repair Stations . | . . . . . . . . Recycling Units . | . . . . . . . . Scanalyzers . | . . . . . . . . Garrison Access 2 | . . . . . 1 . 1 Total Hacks 45 | . 19 . 1 . 18 4 3 Successful 22 | . 9 . 1 . 8 2 2 Failed 23 | . 10 . . . 10 2 1 Catastrophic 5 | . 2 . . . 1 2 . Database Lockouts . | . . . . . . . . Manual 11 | . 5 . 1 . 3 2 . Terminals 40 | . 19 . . . 15 4 2 Fabricators . | . . . . . . . . Repair Stations . | . . . . . . . . Recycling Units . | . . . . . . . . Scanalyzers . | . . . . . . . . Garrison Access 4 | . . . . . 3 . 1 Terminal Hacks 20 | . 9 . 1 . 7 2 1 Prototype ID Bank 3 | . 2 . . . 1 . . Branch Access Points 1 | . 1 . . . . . . Emergency Access Points 2 | . . . . . 1 1 . Scanalyzer Index 1 | . . . . . 1 . . Unreport Threat 1 | . 1 . . . . . . Locate Traps 3 | . 2 . . . 1 . . Reprogram Traps 2 | . 1 . . . 1 . . Surveillance Status 1 | . . . . . 1 . . Transport Status 1 | . 1 . . . . . . Zone Layout 3 | . 1 . . . 1 . 1 Garrison Registry 1 | . . . . . . 1 . Derelict Proto ID Bank 1 | . . . 1 . . . . Fabricator Hacks . | . . . . . . . . Repair Station Hacks . | . . . . . . . . Recycling Unit Hacks . | . . . . . . . . Scanalyzer . | . . . . . . . . Garrison Access Hacks 2 | . . . . . 1 . 1 Unlock Access 1 | . . . . . 1 . . Seal Access 1 | . . . . . . . 1 Unauthorized Hacks . | . . . . . . . . Terminals . | . . . . . . . . Fabricators . | . . . . . . . . Repair Stations . | . . . . . . . . Recycling Units . | . . . . . . . . Scanalyzers . | . . . . . . . . Garrison Access . | . . . . . . . . Data Cores Recovered . | . . . . . . . . Used . | . . . . . . . . Hacking Detections 15 | . 7 . . . 4 3 1 Full Trace Events 1 | . . . . . 1 . . Feedback Events . | . . . . . . . . Feedback Blocked . | . . . . . . . . Robot Schematics Acquired . | . . . . . . . . Robots Built . | . . . . . . . . Authchips . | . . . . . . . . Time . | . . . . . . . . Total Robot Build Rating . | . . . . . . . . Part Schematics Acquired . | . . . . . . . . Parts Built . | . . . . . . . . Authchips . | . . . . . . . . Time . | . . . . . . . . Total Part Build Rating . | . . . . . . . . Parts Repaired . | . . . . . . . . Time . | . . . . . . . . Parts Recycled . | . . . . . . . . Recycled Matter . | . . . . . . . . Retrieved Matter . | . . . . . . . . Retrieved Components . | . . . . . . . . Parts Scanalyzed . | . . . . . . . . Part Schematics Acquired . | . . . . . . . . Parts Damaged . | . . . . . . . . Bothacking | -11 -10 -10 -10 -9 -8 -8 -8 ------------ Run | Yrd Mat Min Exi Min Mat Gar Mat Used RIF Installer 1 | . . . . . . 1 . Robots Hacked 5 | . . . . . . . 5 Non-combat 1 | . . . . . . . 1 Combat 4 | . . . . . . . 4 Robot Hacks Applied 6 | . . . . . . . 6 parse_system 2 | . . . . . . . 2 find_shortcuts 1 | . . . . . . . 1 amplify_resonance 2 | . . . . . . . 2 overwrite_iff 1 | . . . . . . . 1 Relay Couplers Released . | . . . . . . . . Attached 2 | . . . . . . . 2 Fabnet Peak Effective % . | . . . . . . . . Robots Rewired 12 | . . . . . . 12 . Allies Hacked 1 | . . . . . . 1 . Hacks Repelled . | . . . . . . . . Allies | -11 -10 -10 -10 -9 -8 -8 -8 -------- Run | Yrd Mat Min Exi Min Mat Gar Mat Total Allies 14 | . . 1 . . . 12 1 Largest Group 6 | . . 1 . . . 6 1 Highest-Rated Group 165 | . . 31 . . . 165 16 Highest-Rated Ally 31 | . . 31 . . . 31 16 Total Orders . | . . . . . . . . Ally Attacks 101 | . . 3 . . . 98 . Total Damage 2073 | . . 22 . . . 2051 . Kills 23 | . . . . . . 23 . Allies Corrupted . | . . . . . . . . Allies Melted . | . . . . . . . . Turrets Deployed 2 | . . . . . . 2 . Intel | -11 -10 -10 -10 -9 -8 -8 -8 ------- Run | Yrd Mat Min Exi Min Mat Gar Mat Robot Analysis Total . | . . . . . . . . Derelict Logs Recovered . | . . . . . . . . Drone Launches . | . . . . . . . . Drone Recoveries . | . . . . . . . . Exploration | -11 -10 -10 -10 -9 -8 -8 -8 ------------- Run | Yrd Mat Min Exi Min Mat Gar Mat Turns Passed 5789 | 75 1761 434 425 79 620 2210 185 Spaces Moved 2965 | 41 576 197 221 41 352 1322 215 Core 3 | 2 1 . . . . . . Treads 439 | 39 377 4 . . . 19 . Legs 2209 | . 198 193 221 41 352 1204 . Wheels . | . . . . . . . . Hover 314 | . . . . . . 99 215 Flight . | . . . . . . . . Fastest Speed 45 | 50 160 190 190 190 120 45 45 Average Speed 139 | 154 170 206 190 190 121 124 49 Slowest Speed 500 | 160 500 330 190 190 190 260 111 Overloaded Moves . | . . . . . . . . Propulsion Burnouts . | . . . . . . . . Robots Hopped . | . . . . . . . . Cave-ins Triggered . | . . . . . . . . Exploration Rate (%) 45 | 4 83 48 60 22 25 95 23 Regions Visited 7 Branch Regions 3 Pre-discovered Areas . | . . . . . . . . Known Exits Taken 2 | . 1 . . . 1 . . Unknown Exits Taken 4 | 1 . 1 1 1 . . . Scrap Searched . | . . . . . . . . Spaces Dug 78 | . 15 5 . . . 56 2 Terrain Destroyed 418 | . 20 47 . . 45 239 67 Melee 3 | . . . . . . 1 2 Projectile . | . . . . . . . . AOE 415 | . 20 47 . . 45 238 65 Terrain Rammed . | . . . . . . . . Walls Destroyed . | . . . . . . . . Machines Disabled . | . . . . . . . . Actions | -11 -10 -10 -10 -9 -8 -8 -8 --------- Run | Yrd Mat Min Exi Min Mat Gar Mat Total 4366 | 50 1215 214 230 43 506 1831 277 Wait 1056 | . 537 . . . 110 386 23 Move 2958 | 40 575 196 220 40 351 1321 215 Hop . | . . . . . . . . Pick Up 55 | 4 12 4 3 1 11 17 3 Fast Attach 22 | 6 3 1 . . 3 7 2 Attach 19 | . 6 . . . 2 5 6 Detach 10 | . 4 1 . . . 1 4 Swap 32 | . 6 3 . 1 3 15 4 Drop 42 | . 3 3 7 1 6 19 3 Fire 139 | . 69 6 . . 20 33 11 Melee 32 | . . . . . . 26 6 Ram . | . . . . . . . . Kick . | . . . . . . . . Crush . | . . . . . . . . Escape Stasis . | . . . . . . . . Rewire 1 | . . . . . . 1 . Trap . | . . . . . . . . Miscellaneous . | . . . . . . . . Route ------- -11/Scrapyard -10/Materials (discovered 4 exits: [*Mat x2] / *Min x2) -10/Mines (discovered 2 exits: [*Mat] / *Exi) -10/Exiles (discovered 2 exits: [*Min x2]) -9/Mines -8/Materials -8/Garrison (discovered 4 exits: *Mat x4) -8/Materials History --------- Turn | Location | Event 2 | -11/Scrapyard | Met Revision 17 15 | -11/Scrapyard | Discovered new exit (range 16) 76 | -11/Scrapyard | Entered Materials 302 | -10/Materials | Build established: Mutant 413 | -10/Materials | Discovered new exit (range 15) 886 | -10/Materials | Discovered new exit (range 10) 977 | -10/Materials | Discovered new exit (range 15) 1075 | -10/Materials | Lost 3 parts (1p2n) 1650 | -10/Materials | Discovered new exit (range 9) 1712 | -10/Materials | Identified exit to Mines 1837 | -10/Materials | Entered Mines 2012 | -10/Mines | Discovered new exit (range 3) 2015 | -10/Mines | Received a Mining Laser from a helpful Derelict 2255 | -10/Mines | Deemed a non-threat by the Exiles lab entrance 2258 | -10/Mines | Discovered new exit (range 5) 2271 | -10/Mines | Entered Exiles 2296 | -10/Exiles | Discovered new exit (range 15) 2317 | -10/Exiles | Met 8R-AWN 2349 | -10/Exiles | Met EX-HEX 2403 | -10/Exiles | Met EX-BIN 2425 | -10/Exiles | Aligned with FarCom system 2427 | -10/Exiles | Given EX-Vault access code 2477 | -10/Exiles | Opened EX-Vault 2518 | -10/Exiles | Found Deploy-a-Sentry 2521 | -10/Exiles | Found Deploy-a-Sentry 2524 | -10/Exiles | Found Deploy-a-Sentry 2559 | -10/Exiles | Warned to stay clear of 0b10 Research branches 2560 | -10/Exiles | Exiles lab attacked by MAIN.C 2681 | -10/Exiles | Discovered new exit (range 10) 2696 | -10/Exiles | Left Exiles lab with Deploy-a-Sentry 2696 | -10/Exiles | Entered Mines 2703 | -9/Mines | Received a Rocket Launcher from a helpful Derelict 2747 | -9/Mines | Discovered new exit (range 16) 2775 | -9/Mines | Entered Materials 2775 | -8/Materials | Evolved 4 slots: Propulsion x2, Utility x2 3394 | -8/Materials | Identified exit to Garrison 3395 | -8/Materials | Entered Garrison 3402 | -8/Garrison | DAS Turret deployed 3407 | -8/Garrison | DAS Turret deployed 3495 | -8/Garrison | Phase Generator disabled 3557 | -8/Garrison | Triggered checkpoint 3716 | -8/Garrison | Lost 5 allies 3891 | -8/Garrison | Triggered checkpoint 4035 | -8/Garrison | Installed Relay Interface Framework 4121 | -8/Garrison | Triggered checkpoint 4231 | -8/Garrison | Triggered checkpoint 4291 | -8/Garrison | Triggered checkpoint 4433 | -8/Garrison | Triggered checkpoint 4463 | -8/Garrison | Triggered checkpoint 4463 | -8/Garrison | Triggered checkpoint 4567 | -8/Garrison | Build established: Commander-Mutant 4725 | -8/Garrison | P-60 Hacker assimilated allied Shotgunner 3a 4770 | -8/Garrison | Lost 4 allies 4871 | -8/Garrison | Discovered new exit (range 12) 4875 | -8/Garrison | Triggered checkpoint 5051 | -8/Garrison | Discovered new exit (range 12) 5122 | -8/Garrison | Triggered checkpoint 5136 | -8/Garrison | Build established: Bothacker-Mutant 5299 | -8/Garrison | Triggered checkpoint 5358 | -8/Garrison | Discovered new exit (range 14) 5358 | -8/Garrison | Discovered new exit (range 47) 5358 | -8/Garrison | Discovered new exit (range 75) 5358 | -8/Garrison | Discovered new exit (range 20) 5439 | -8/Garrison | Spotted B-75 Beast 5472 | -8/Garrison | Destroyed B-75 Beast 5473 | -8/Garrison | Core integrity fell below 50% 5524 | -8/Garrison | Lost 4 parts (3n1w) 5601 | -8/Garrison | Triggered checkpoint 5605 | -8/Garrison | Entered Materials 5770 | -8/Materials | Core integrity fell below 20% 5790 | -8/Materials | Destroyed by C-17 Slicer with Concussive RPG Last Messages --------------- detonation. 05776_ Y-45 Defender Imp. Ion Engine critical resonance detonation. 05776_ Antigrav System destroyed. 05776_ Y-45 Defender destroyed. 05776_ Acquired 39 matter. 05779_ Acquired Lgt. Nuclear Core. 05781_ Acquired 52 matter. 05781_ R-06 Scavenger collects Sml. Storage Unit. 05782_ Acquired 3 matter. 05783_ Acquired 17 matter. 05784_ R-06 Scavenger collects Lgt. Armor Plating. 05788_ R-06 Scavenger collects Com. Wheel. 05790_ Acquired 41 matter. 05790_ Knocked back. 05790_ R-06 Scavenger knocked back. 05790_ Katana destroyed. 05790_ Lgt. Nuclear Core destroyed. Map ----- +----------------------------------------------------+ | ?????????????????????????????????????????????????? | | ?????????????????????????????????????????????????? | | ?????????????????????????????????????????????????? | | ?????????????????????????????????????????????????? | | ?????????????????????????????????????????????????? | | ?????????????????????????????????????????????????? | | ?????????????????????????????????????????????????? | | ?????????????????????????????????????????????????? | | ?????????????????????????????????????????????????? | | ?????????????????????????????????????????????????? | | ?????????????????????????????????????????????????? | | ?????????????????????????????????????????????????? | | ?????????????????????????????????????????????????? | | ?????????????????????????????????????????????????? | | ?????????????????????????????????????????????????? | | ?????????????????????????????????????????????????? | | ?????????????????????????????????????????????????? | | ?????????????????????????????????????????????????? | | ?????????????????????????????????????????????????? | | ?????????????????????????????????????????????????? | | ???????????????????????##????????????????????????? | | ???????????????????????# #####???????? ##????????? | | ?????????????????????### ####### ????????? | | ?????????????????????# cc #???????? | | ?????????????????????# cu c H #???????? | | ?????????????????????# @ #???????? | | ?????????????????????### #####??????????????? | | ??????????????????????# ###?????????????????? | | ??????????????????????## a ; ######????????????? | | ???????????????????????##* #????????????? | | ??????????????###########[ r = ##???????????? | | ??????????????# ! =] #! == "#???????????? | | ???????????????# ]] # = ; ######"#??????????? | | ???????????????# ]] w # ! ##??????????? | | ???????????????# # ^ #???????????? | | ???????????????# + """ #???######??? | | ???????????????# " " # """"" #??? #??? | | ???????????????# "G" # """"" #??T" #??? | | ???????????????# " # """"" # #??? | | ???????????????# # ^""" # """ #??? | | ???????????????#######+## #""""" #??? | | ?????????????????????# ## #""""" #??? | | ???????????????#######+## #""""" #??? | | ???????????????# # # """ #### | | ???????????????# """ # # # | | ???????????????# = """ # !! ###+###### | | ???????????????# """ # ! | | ???????????????# + | | ???????????????# """ # | | ???????????????# """ # | +----------------------------------------------------+ Best States ------------- Heat Dissipation 31 Energy Generation 18 Energy Capacity 265 Matter Stores 300 Matter Capacity 300 Sight Range 16 Terrain Scan Density 10 Propulsion Shielding 33 Evasion (%) 59 Targeting Accuracy 24 Recoil Reduction 2 Defensive Hacking 10 Relay Coupler Types 2 Relay Coupler Value 61 Item Schematics ----------------- None Robot Schematics ------------------ None Fabricated ------------ Nothing Alien Tech Used ----------------- None Achievements -------------- None Challenges ------------ None Game ------ Seed ConstructShieldRedistributor Manual? 0 Play Time 01:14:22 Cumulative 42.3 hours Start 2024.04.27 @ 11:56:23 End 2024.04.27 @ 13:39:17 Sessions 1 Manual Loads 0 Difficulty Rogue Special Mode None Game No. 67 Rogue 67 Adventurer 0 Explorer 0 Win Type - Total 0 Types 0/0/0/0/0/0/0/0/0 Lore% 22 Gallery% 30 Achievement% 25 Wizard Run 0 Options --------- Layout 1 ASCII 0 Keyboard 1 Movement Numpad Keybinds 0 Fullscreen 1 Font 24/Smallcaps Map View 50x35 Zoom Use 0% Tactical HUD 1 Map Filters NONE Filters NONE Steam 1 RUN: 2336296d-7f27-449c-b9c9-59a17ebf840e